[Event "ESP-chT Honor Division 2022"]
[Site "Linares"]
[Date "2022.09.18"]
[Round "2.15"]
[White "Martinez Fernandez, Adrian"]
[Black "Kuzubov, Yuriy"]
[Result "1/2-1/2"]
[ECO "B51"]
[WhiteElo "2338"]
[BlackElo "2627"]
[Annotator "ChessBase"]
[PlyCount "66"]
[EventDate "2022.09.17"]
[EventType "team-tourn"]
[EventCountry "ESP"]
[SourceTitle "playchess.com"]
[Source "ChessBase"]
[SourceQuality "1"]
[TimeControl "5400+30"]

1. e4 {[%emt 0:01:47]} c5 {[%emt 0:00:06]} 2. Nf3 {[%emt 0:00:05]} d6 {[%emt 0:00:06]} 3. Bb5+ {[%emt 0:00:07]} Nc6 {[%emt 0:00:52]} 4. O-O {[%emt 0:00:45]} Bd7 {[%emt 0:00:05]} 5. Re1 {[%emt 0:00:10]} Nf6 {[%emt 0:00:08]} 6. c3 {[%emt 0:00:07]} a6 {[%emt 0:00:06]} 7. Bf1 {[%emt 0:00:07]} Bg4 {[%emt 0:00:31]} 8. d4 {[%emt 0:00:06]} cxd4 {[%emt 0:12:07]} 9. cxd4 {[%emt 0:00:20]} e5 {[%emt 0:00:07]} 10. d5 {[%emt 0:00:06]} Nd4 {[%emt 0:00:07]} 11. Be3 {[%emt 0:00:12]} Nxf3+ {[%emt 0:00:26]} 12. gxf3 {[%emt 0:00:06]} Bd7 {[%emt 0:00:07]} 13. Nd2 {[%emt 0:00:07]} b5 {[%emt 0:08:53]} 14. a4 {[%emt 0:00:06]} Be7 {[%emt 0:04:42]} 15. axb5 {[%emt 0:00:07]} axb5 {[%emt 0:00:07]} 16. Rxa8 {[%emt 0:00:05]} Qxa8 {[%emt 0:00:06]} 17. Qa1 {[%emt 0:00:06]} O-O {[%emt 0:06:56]} 18. Rc1 {[%emt 0:03:40]} Qb7 {[%emt 0:34:41]} 19. Qa7 {[%emt 0:00:32]} Qxa7 {[%emt 0:00:57]} 20. Bxa7 {[%emt 0:00:10]} Ra8 {[%emt 0:00:35]} 21. Rc7 {[%emt 0:00:07]} Kf8 {[%emt 0:11:18]} 22. Rb7 {[%emt 0:00:17]} Bd8 {[%emt 0:10:52]} 23. Bb8 {[%emt 0:26:35]} Be7 {[%emt 0:00:27]} 24. Bxb5 {[%emt 0:31:56]} Ra1+ {[%emt 0:00:55]} 25. Nf1 {[%emt 0:01:06]} Bxb5 {[%emt 0:04:04]} 26. Rxb5 {[%emt 0:00:06]} Nh5 {[%emt 0:00:16]} 27. Bc7 {[%emt 0:00:52]} f5 {[%emt 0:00:27]} 28. Rb6 {[%emt 0:12:14]} Nf4 {[%emt 0:01:06]} 29. Bxd6 {[%emt 0:00:15]} Bxd6 {[%emt 0:00:44]} 30. Rxd6 {[%emt 0:00:07]} Ne2+ {[%emt 0:01:03]} 31. Kg2 {[%emt 0:00:05]} Nf4+ {[%emt 0:00:04]} 32. Kg1 {[%emt 0:00:05]} Ne2+ {[%emt 0:01:58]} 33. Kg2 {[%emt 0:00:05]} Nf4+ {[%emt 0:00:38]} 1/2-1/2

[Event "ESP-chT Honor Division 2022"]
[Site "Linares"]
[Date "2022.09.18"]
[Round "2.16"]
[White "Forcen Esteban, Daniel"]
[Black "Masague Artero, Guerau"]
[Result "1-0"]
[ECO "B31"]
[WhiteElo "2580"]
[BlackElo "2308"]
[Annotator "ChessBase"]
[PlyCount "79"]
[EventDate "2022.09.17"]
[EventType "team-tourn"]
[EventCountry "ESP"]
[SourceTitle "playchess.com"]
[Source "ChessBase"]
[SourceQuality "1"]
[TimeControl "5400+30"]

1. e4 {[%emt 0:00:03]} c5 {[%emt 0:01:18]} 2. Nf3 {[%emt 0:00:18]} Nc6 {[%emt 0:00:10]} 3. Bb5 {[%emt 0:00:43]} g6 {[%emt 0:01:16]} 4. Bxc6 {[%emt 0:01:08]} dxc6 {[%emt 0:00:06]} 5. d3 {[%emt 0:00:10]} Bg7 {[%emt 0:00:26]} 6. h3 {[%emt 0:00:53]} Nf6 {[%emt 0:03:17]} 7. Nc3 {[%emt 0:01:38]} Nd7 {[%emt 0:02:11]} 8. Be3 {[%emt 0:00:57]} e5 {[%emt 0:03:46]} 9. Qd2 {[%emt 0:00:50]} h6 {[%emt 0:00:07]} 10. O-O {[%emt 0:02:48]} b6 {[%emt 0:01:10]} 11. Nh2 {[%emt 0:00:07]} Nf8 {[%emt 0:00:05]} 12. f4 {[%emt 0:00:05]} exf4 {[%emt 0:00:05]} 13. Bxf4 {[%emt 0:00:04]} Be6 {[%emt 0:00:04]} 14. Nf3 {[%emt 0:06:58]} g5 {[%emt 0:17:34]} 15. Bg3 {[%emt 0:00:49]} Ng6 {[%emt 0:07:25]} 16. Rae1 {[%emt 0:00:25]} O-O {[%emt 0:09:01]} 17. e5 {[%emt 0:02:00]} Bd5 {[%emt 0:02:40]} 18. Ne4 {[%emt 0:01:24]} Bxe4 {[%emt 0:05:28]} 19. Rxe4 {[%emt 0:00:25]} f5 {[%emt 0:00:27]} 20. exf6 {[%emt 0:00:09]} Qxf6 {[%emt 0:00:51]} 21. b3 {[%emt 0:02:03]} Rae8 {[%emt 0:01:06]} 22. Qe2 {[%emt 0:15:47]} Re7 {[%emt 0:03:57]} 23. Kh2 {[%emt 0:06:13]} Nf4 {[%emt 0:11:46]} 24. Qe1 {[%emt 0:00:58]} Rxe4 {[%emt 0:03:04]} 25. Qxe4 {[%emt 0:00:13]} Nh5 {[%emt 0:00:43]} 26. Nd2 {[%emt 0:11:43]} Nxg3 {[%emt 0:04:51]} 27. Qc4+ {[%emt 0:00:17]} Kh8 {[%emt 0:00:30]} 28. Rxf6 {[%emt 0:00:08]} Bxf6 {[%emt 0:00:05]} 29. Qe6 {[%emt 0:03:31]} Nh5 {[%emt 0:00:21]} 30. Ne4 {[%emt 0:00:48]} Bg7 {[%emt 0:01:32]} 31. g3 {[%emt 0:01:45]} Nf6 {[%emt 0:00:46]} 32. Nd6 {[%emt 0:00:38]} Nd5 {[%emt 0:00:52]} 33. Nf5 {[%emt 0:01:14]} Rf6 {[%emt 0:01:29]} 34. Qe8+ {[%emt 0:00:31]} Bf8 {[%emt 0:07:16]} 35. Qe5 {[%emt 0:02:16]} Bg7 {[%emt 0:00:34]} 36. Qe8+ {[%emt 0:02:19]} Bf8 {[%emt 0:00:13]} 37. Nxh6 {[%emt 0:01:25]} Kg7 {[%emt 0:02:45]} 38. Ng4 {[%emt 0:00:12]} Rf5 {[%emt 0:00:13]} 39. Qe6 {[%emt 0:02:08]} Ne7 {[%emt 0:00:11]} 40. Kg2 {[%emt 0:00:07]} 1-0

[Event "ESP-chT Honor Division 2022"]
[Site "Linares"]
[Date "2022.09.18"]
[Round "2.17"]
[White "Rodriguez Redondo, Adhara"]
[Black "Buksa, Nataliya"]
[Result "0-1"]
[ECO "C50"]
[WhiteElo "2112"]
[BlackElo "2407"]
[Annotator "ChessBase"]
[PlyCount "138"]
[EventDate "2022.09.17"]
[EventType "team-tourn"]
[EventCountry "ESP"]
[SourceTitle "playchess.com"]
[Source "ChessBase"]
[SourceQuality "1"]
[TimeControl "5400+30"]

1. e4 {[%emt 0:02:23]} e5 {[%emt 0:00:06]} 2. Nf3 {[%emt 0:00:36]} Nc6 {[%emt 0:00:05]} 3. Bc4 {[%emt 0:00:04]} Bc5 {[%emt 0:00:05]} 4. O-O {[%emt 0:01:40]} Nf6 {[%emt 0:00:22]} 5. d3 {[%emt 0:00:06]} h6 {[%emt 0:00:06]} 6. a4 {[%emt 0:00:37]} a5 {[%emt 0:01:13]} 7. c3 {[%emt 0:05:24]} d6 {[%emt 0:00:04]} 8. Re1 {[%emt 0:04:35]} O-O {[%emt 0:00:17]} 9. Nbd2 {[%emt 0:02:46]} Ba7 {[%emt 0:04:26]} 10. Nf1 {[%emt 0:05:47]} Be6 {[%emt 0:00:29]} 11. Bxe6 {[%emt 0:04:16]} fxe6 {[%emt 0:00:04]} 12. Be3 {[%emt 0:02:07]} Bxe3 {[%emt 0:02:35]} 13. Nxe3 {[%emt 0:01:05]} Qe8 {[%emt 0:00:30]} 14. g3 {[%emt 0:08:20]} Rd8 {[%emt 0:06:38]} 15. Nh4 {[%emt 0:13:56]} d5 {[%emt 0:06:12]} 16. Ng4 {[%emt 0:12:01]} Qf7 {[%emt 0:04:11]} 17. Nxf6+ {[%emt 0:02:28]} Qxf6 {[%emt 0:00:03]} 18. Qe2 {[%emt 0:01:47]} d4 {[%emt 0:09:54]} 19. Rad1 {[%emt 0:02:42]} Rf7 {[%emt 0:05:35]} 20. Rd2 {[%emt 0:02:14]} Qe7 {[%emt 0:12:17]} 21. Qd1 {[%emt 0:04:52]} b6 {[%emt 0:11:03]} 22. Ng2 {[%emt 0:05:05]} Nb8 {[%emt 0:04:01]} 23. Qb3 {[%emt 0:09:15]} g5 {[%emt 0:02:15]} 24. Qb5 {[%emt 0:02:19]} Qd6 {[%emt 0:02:53]} 25. Rf1 {[%emt 0:03:16]} Nd7 {[%emt 0:01:35]} 26. cxd4 {[%emt 0:01:07]} Qxd4 {[%emt 0:00:04]} 27. Ne3 {[%emt 0:02:23]} Nc5 {[%emt 0:00:03]} 28. Rfd1 {[%emt 0:00:28]} Kg7 {[%emt 0:03:15]} 29. b3 {[%emt 0:00:42]} Qc3 {[%emt 0:03:39]} 30. Rc2 {[%emt 0:00:37]} Qd4 {[%emt 0:01:37]} 31. Rcd2 {[%emt 0:00:01]} h5 {[%emt 0:01:32]} 32. Qc4 {[%emt 0:00:55]} Qxc4 {[%emt 0:00:51]} 33. Nxc4 {[%emt 0:00:07]} Kf6 {[%emt 0:00:02]} 34. d4 {[%emt 0:00:56]} exd4 {[%emt 0:02:30]} 35. Rxd4 {[%emt 0:00:20]} Rxd4 {[%emt 0:00:04]} 36. Rxd4 {[%emt 0:00:03]} Nxb3 {[%emt 0:00:03]} 37. Rd8 {[%emt 0:00:29]} Nc5 {[%emt 0:00:03]} 38. Rh8 {[%emt 0:00:59]} Nxe4 {[%emt 0:01:53]} 39. Rxh5 {[%emt 0:00:37]} Nc5 {[%emt 0:03:02]} 40. Rh6+ {[%emt 0:00:33]} Kg7 {[%emt 0:00:59]} 41. Rh5 {[%emt 0:00:11]} Rf5 {[%emt 0:00:03]} 42. Ne3 {[%emt 0:00:30]} Re5 {[%emt 0:00:56]} 43. h4 {[%emt 0:00:46]} Nxa4 {[%emt 0:02:49]} 44. hxg5 {[%emt 0:00:05]} b5 {[%emt 0:00:38]} 45. Ng4 {[%emt 0:00:57]} Re1+ {[%emt 0:09:09]} 46. Kg2 {[%emt 0:00:01]} Nc3 {[%emt 0:00:03]} 47. Nf6 {[%emt 0:00:43]} Nd5 {[%emt 0:00:58]} 48. f4 {[%emt 0:00:44]} b4 {[%emt 0:02:24]} 49. Rh7+ {[%emt 0:00:20]} Kg6 {[%emt 0:00:03]} 50. Rh6+ {[%emt 0:00:29]} Kf5 {[%emt 0:00:06]} 51. Nxd5 {[%emt 0:00:37]} exd5 {[%emt 0:00:03]} 52. Kf3 {[%emt 0:00:37]} Rf1+ {[%emt 0:00:03]} 53. Kg2 {[%emt 0:00:30]} Rc1 {[%emt 0:02:24]} 54. Rf6+ {[%emt 0:00:21]} Kg4 {[%emt 0:00:05]} 55. g6 {[%emt 0:00:27]} Rc2+ {[%emt 0:00:02]} 56. Kf1 {[%emt 0:00:25]} Kf3 {[%emt 0:00:03]} 57. Re6 {[%emt 0:00:26]} b3 {[%emt 0:01:14]} 58. g7 {[%emt 0:00:47]} b2 {[%emt 0:00:07]} 59. Re1 {[%emt 0:00:24]} Rf2+ {[%emt 0:00:05]} 60. Kg1 {[%emt 0:00:07]} Rg2+ {[%emt 0:00:02]} 61. Kf1 {[%emt 0:01:03]} Rxg3 {[%emt 0:00:07]} 62. Rb1 {[%emt 0:00:27]} Rxg7 {[%emt 0:00:04]} 63. Rxb2 {[%emt 0:00:07]} Kxf4 {[%emt 0:00:21]} 64. Rb5 {[%emt 0:00:06]} d4 {[%emt 0:00:14]} 65. Ke2 {[%emt 0:00:19]} Ke4 {[%emt 0:00:22]} 66. Rxa5 {[%emt 0:00:13]} Rg2+ {[%emt 0:00:20]} 67. Kd1 {[%emt 0:00:06]} Ke3 {[%emt 0:00:41]} 68. Re5+ {[%emt 0:01:05]} Kd3 {[%emt 0:00:02]} 69. Kc1 {[%emt 0:00:11]} Rc2+ {[%emt 0:00:05]} 0-1

[Event "ESP-chT Honor Division 2022"]
[Site "Linares"]
[Date "2022.09.18"]
[Round "2.18"]
[White "Llorente Zaro, Alfonso"]
[Black "Cano Sevilla, Ivan"]
[Result "1-0"]
[ECO "B31"]
[WhiteElo "2448"]
[BlackElo "2076"]
[Annotator "ChessBase"]
[PlyCount "109"]
[EventDate "2022.09.17"]
[EventType "team-tourn"]
[EventCountry "ESP"]
[SourceTitle "playchess.com"]
[Source "ChessBase"]
[SourceQuality "1"]
[TimeControl "5400+30"]

1. e4 {[%emt 0:00:07]} c5 {[%emt 0:00:11]} 2. Nf3 {[%emt 0:00:13]} Nc6 {[%emt 0:00:10]} 3. Bb5 {[%emt 0:00:13]} g6 {[%emt 0:00:05]} 4. c3 {[%emt 0:01:37]} e5 {[%emt 0:01:35]} 5. O-O {[%emt 0:01:05]} Bg7 {[%emt 0:00:23]} 6. d4 {[%emt 0:01:14]} exd4 {[%emt 0:01:16]} 7. cxd4 {[%emt 0:00:05]} cxd4 {[%emt 0:00:50]} 8. Bf4 {[%emt 0:02:05]} Nge7 {[%emt 0:31:32]} 9. Bd6 {[%emt 0:06:41]} O-O {[%emt 0:00:46]} 10. Nbd2 {[%emt 0:10:11]} Re8 {[%emt 0:06:39]} 11. Rc1 {[%emt 0:32:22]} Qb6 {[%emt 0:10:03]} 12. Bc4 {[%emt 0:05:00]} Na5 {[%emt 0:08:34]} 13. Bc7 {[%emt 0:00:47]} Nxc4 {[%emt 0:02:51]} 14. Bxb6 {[%emt 0:00:29]} Nxb6 {[%emt 0:00:02]} 15. Nc4 {[%emt 0:15:39]} Nxc4 {[%emt 0:00:07]} 16. Rxc4 Nc6 17. Re1 {[%emt 0:00:54]} d6 {[%emt 0:00:08]} 18. Nxd4 {[%emt 0:00:45]} Nxd4 {[%emt 0:00:19]} 19. Rxd4 {[%emt 0:00:01]} Bxd4 {[%emt 0:00:01]} 20. Qxd4 {[%emt 0:00:08]} Be6 {[%emt 0:00:19]} 21. b3 {[%emt 0:00:34]} Red8 {[%emt 0:00:57]} 22. h4 {[%emt 0:01:20]} d5 {[%emt 0:00:35]} 23. h5 {[%emt 0:04:19]} dxe4 {[%emt 0:00:54]} 24. Qf6 {[%emt 0:01:20]} gxh5 {[%emt 0:00:36]} 25. Rxe4 {[%emt 0:00:13]} Rd1+ {[%emt 0:01:31]} 26. Kh2 {[%emt 0:00:01]} Rad8 {[%emt 0:00:08]} 27. Re5 {[%emt 0:00:46]} R8d5 {[%emt 0:00:38]} 28. Qg5+ {[%emt 0:00:27]} Kh8 {[%emt 0:00:25]} 29. Qxh5 {[%emt 0:01:44]} Rxe5 {[%emt 0:02:02]} 30. Qxe5+ {[%emt 0:00:02]} Kg8 {[%emt 0:00:37]} 31. Qb8+ {[%emt 0:00:12]} Kg7 {[%emt 0:00:11]} 32. Qxb7 {[%emt 0:03:44]} Rd7 {[%emt 0:00:13]} 33. Qb4 {[%emt 0:00:06]} Rd5 {[%emt 0:01:10]} 34. Qc3+ {[%emt 0:00:34]} Kf8 {[%emt 0:01:39]} 35. Qh8+ {[%emt 0:00:24]} Ke7 {[%emt 0:00:02]} 36. Qxh7 {[%emt 0:00:13]} a5 {[%emt 0:00:11]} 37. Qh4+ {[%emt 0:00:25]} Kd7 {[%emt 0:00:23]} 38. Qf4 {[%emt 0:00:23]} Rf5 {[%emt 0:00:46]} 39. Qb8 {[%emt 0:00:58]} Ke7 {[%emt 0:00:14]} 40. f3 {[%emt 0:00:17]} Rd5 {[%emt 0:00:08]} 41. Kg3 {[%emt 0:00:50]} Kf6 {[%emt 0:00:00]} 42. Kh4 {[%emt 0:01:13]} Kg7 {[%emt 0:01:11]} 43. g4 {[%emt 0:00:13]} f6 {[%emt 0:01:06]} 44. Qc7+ {[%emt 0:02:45]} Bf7 {[%emt 0:00:02]} 45. Qc3 {[%emt 0:00:07]} Kg6 {[%emt 0:01:55]} 46. a4 {[%emt 0:00:48]} Re5 {[%emt 0:00:47]} 47. Kg3 {[%emt 0:02:02]} Rd5 {[%emt 0:00:12]} 48. b4 {[%emt 0:00:09]} axb4 {[%emt 0:00:02]} 49. Qxb4 {[%emt 0:00:01]} Kg7 {[%emt 0:00:34]} 50. a5 {[%emt 0:01:00]} Rd3 {[%emt 0:00:04]} 51. Qb5 {[%emt 0:00:07]} Rb3 {[%emt 0:00:26]} 52. Qc5 {[%emt 0:00:19]} Rd3 {[%emt 0:00:52]} 53. Kf2 {[%emt 0:02:43]} Rd2+ {[%emt 0:00:26]} 54. Ke3 {[%emt 0:00:15]} Ra2 {[%emt 0:00:02]} 55. Qc3 {[%emt 0:00:23]} 1-0

[Event "ESP-chT Honor Division 2022"]
[Site "Linares"]
[Date "2022.09.18"]
[Round "2.19"]
[White "Eljanov, Pavel"]
[Black "Harikrishna, Pentala"]
[Result "1/2-1/2"]
[ECO "C50"]
[WhiteElo "2695"]
[BlackElo "2716"]
[Annotator "ChessBase"]
[PlyCount "86"]
[EventDate "2022.09.17"]
[EventType "team-tourn"]
[EventCountry "ESP"]
[SourceTitle "playchess.com"]
[Source "ChessBase"]
[SourceQuality "1"]
[TimeControl "5400+30"]

1. e4 {[%emt 0:00:05]} e5 {[%emt 0:00:11]} 2. Nf3 {[%emt 0:00:08]} Nc6 {[%emt 0:00:07]} 3. Bc4 {[%emt 0:00:23]} Bc5 {[%emt 0:00:13]} 4. d3 {[%emt 0:00:15]} Nf6 {[%emt 0:00:25]} 5. Nc3 {[%emt 0:00:09]} d6 {[%emt 0:01:10]} 6. Na4 {[%emt 0:00:26]} Bb6 {[%emt 0:01:22]} 7. Nxb6 {[%emt 0:04:32]} axb6 {[%emt 0:00:07]} 8. c3 {[%emt 0:00:02]} O-O {[%emt 0:03:42]} 9. O-O {[%emt 0:02:04]} Bg4 {[%emt 0:04:55]} 10. Bb3 {[%emt 0:02:31]} h6 {[%emt 0:03:42]} 11. h3 {[%emt 0:03:56]} Be6 {[%emt 0:00:23]} 12. Bc2 {[%emt 0:03:17]} d5 {[%emt 0:02:02]} 13. Qe2 {[%emt 0:08:52]} b5 {[%emt 0:15:42]} 14. Rd1 {[%emt 0:06:37]} d4 {[%emt 0:00:41]} 15. a4 {[%emt 0:13:53]} Qe7 {[%emt 0:22:13]} 16. Bd2 {[%emt 0:03:55]} bxa4 {[%emt 0:02:55]} 17. Rxa4 {[%emt 0:02:14]} b5 {[%emt 0:00:25]} 18. Raa1 {[%emt 0:02:40]} Nd7 {[%emt 0:03:41]} 19. Qe1 {[%emt 0:13:58]} Rfb8 {[%emt 0:10:13]} 20. cxd4 {[%emt 0:06:38]} exd4 {[%emt 0:01:07]} 21. b4 {[%emt 0:02:40]} Qf8 {[%emt 0:02:54]} 22. Rab1 {[%emt 0:07:16]} Ra2 {[%emt 0:04:04]} 23. Bb3 {[%emt 0:02:00]} Bxb3 {[%emt 0:01:14]} 24. Rxb3 {[%emt 0:00:03]} Qd6 {[%emt 0:01:02]} 25. Ra1 {[%emt 0:01:30]} Rba8 {[%emt 0:01:59]} 26. Rxa2 {[%emt 0:00:10]} Rxa2 {[%emt 0:00:10]} 27. Qb1 {[%emt 0:00:13]} Ra4 {[%emt 0:01:36]} 28. Qc1 {[%emt 0:02:26]} Nde5 {[%emt 0:03:24]} 29. Nxe5 {[%emt 0:00:19]} Nxe5 {[%emt 0:00:06]} 30. Bf4 {[%emt 0:04:16]} Qe6 {[%emt 0:02:59]} 31. Qd1 {[%emt 0:04:40]} Nc6 {[%emt 0:01:30]} 32. Bxc7 {[%emt 0:02:29]} Nxb4 {[%emt 0:01:19]} 33. Kh2 {[%emt 0:01:02]} Qd7 {[%emt 0:02:58]} 34. Bf4 {[%emt 0:00:37]} Na2 {[%emt 0:00:11]} 35. Be5 {[%emt 0:01:09]} f6 {[%emt 0:01:12]} 36. Bf4 {[%emt 0:00:26]} Nc3 {[%emt 0:00:17]} 37. Qh5 {[%emt 0:00:35]} Qf7 {[%emt 0:03:05]} 38. Qxf7+ {[%emt 0:00:05]} Kxf7 {[%emt 0:00:05]} 39. Bd6 {[%emt 0:00:22]} Ra1 {[%emt 0:02:23]} 40. Bc5 {[%emt 0:00:29]} Rd1 {[%emt 0:01:46]} 41. Bxd4 {[%emt 0:00:44]} Nxe4 {[%emt 0:00:06]} 42. dxe4 {[%emt 0:00:49]} Rxd4 {[%emt 0:00:05]} 43. Rxb5 {[%emt 0:00:03]} Rxe4 {[%emt 0:00:05]} 1/2-1/2

[Event "ESP-chT Honor Division 2022"]
[Site "Linares"]
[Date "2022.09.18"]
[Round "2.20"]
[White "Gukesh D"]
[Black "Jones, Gawain C B"]
[Result "1-0"]
[ECO "D94"]
[WhiteElo "2726"]
[BlackElo "2623"]
[Annotator "ChessBase"]
[PlyCount "59"]
[EventDate "2022.09.17"]
[EventType "team-tourn"]
[EventCountry "ESP"]
[SourceTitle "playchess.com"]
[Source "ChessBase"]
[SourceQuality "1"]
[TimeControl "5400+30"]

1. d4 Nf6 2. c4 g6 3. Nc3 d5 4. Nf3 Bg7 5. e3 O-O 6. cxd5 Nxd5 7. Bc4 Nxc3 8. bxc3 c5 9. O-O Qc7 10. Qe2 Nc6 11. Ba3 b6 12. Rac1 Bb7 13. e4 Na5 14. Bd3 Bh6 15. Rb1 Rac8 16. d5 e6 17. c4 Rce8 18. Qc2 f5 19. Rfe1 fxe4 20. Bxe4 exd5 21. cxd5 Bc8 22. d6 Qxd6 23. Rbd1 Qc7 24. Bd5+ Kh8 25. Bb2+ Bg7 26. Ng5 Bf5 27. Qc3 Rxe1+ 28. Rxe1 h6 29. Qxg7+ Qxg7 30. Re7 1-0

[Event "ESP-chT Honor Division 2022"]
[Site "Linares"]
[Date "2022.09.18"]
[Round "2.21"]
[White "Del Rio De Angelis, Salvador G."]
[Black "Santos Ruiz, Miguel"]
[Result "1/2-1/2"]
[ECO "E48"]
[WhiteElo "2456"]
[BlackElo "2581"]
[Annotator "ChessBase"]
[PlyCount "49"]
[EventDate "2022.09.17"]
[EventType "team-tourn"]
[EventCountry "ESP"]
[SourceTitle "playchess.com"]
[Source "ChessBase"]
[SourceQuality "1"]
[TimeControl "5400+30"]

1. d4 {[%emt 0:00:07]} Nf6 {[%emt 0:00:05]} 2. c4 {[%emt 0:00:09]} e6 {[%emt 0:00:04]} 3. Nc3 {[%emt 0:00:13]} Bb4 {[%emt 0:00:06]} 4. e3 {[%emt 0:00:25]} O-O {[%emt 0:00:06]} 5. Bd3 {[%emt 0:00:28]} d5 {[%emt 0:00:15]} 6. cxd5 {[%emt 0:00:28]} exd5 {[%emt 0:00:09]} 7. Nge2 {[%emt 0:00:07]} Re8 {[%emt 0:00:13]} 8. O-O {[%emt 0:00:41]} Bd6 {[%emt 0:00:29]} 9. Qc2 {[%emt 0:00:47]} c6 {[%emt 0:03:15]} 10. Bd2 {[%emt 0:00:25]} a5 {[%emt 0:00:24]} 11. a3 {[%emt 0:03:02]} Na6 {[%emt 0:00:39]} 12. h3 {[%emt 0:00:55]} Bd7 {[%emt 0:12:53]} 13. Rad1 {[%emt 0:09:25]} h6 {[%emt 0:11:07]} 14. Bc1 {[%emt 0:08:18]} b5 {[%emt 0:07:10]} 15. e4 {[%emt 0:04:47]} dxe4 {[%emt 0:01:24]} 16. Nxe4 {[%emt 0:00:07]} Nxe4 {[%emt 0:00:35]} 17. Bxe4 {[%emt 0:00:05]} Qh4 {[%emt 0:16:02]} 18. Bf3 {[%emt 0:01:08]} Bxh3 {[%emt 0:08:44]} 19. gxh3 {[%emt 0:00:35]} Rxe2 {[%emt 0:00:04]} 20. Bxe2 {[%emt 0:00:18]} Qxh3 {[%emt 0:00:08]} 21. f4 {[%emt 0:00:07]} Qg3+ {[%emt 0:00:05]} 22. Kh1 {[%emt 0:00:05]} Qh3+ {[%emt 0:00:02]} 23. Kg1 {[%emt 0:00:05]} Qg3+ {[%emt 0:00:03]} 24. Kh1 {[%emt 0:00:05]} Qh3+ {[%emt 0:00:02]} 25. Kg1 {[%emt 0:00:08]} 1/2-1/2

[Event "ESP-chT Honor Division 2022"]
[Site "Linares"]
[Date "2022.09.18"]
[Round "2.22"]
[White "Muzychuk, Anna"]
[Black "Suarez Garcia, Carlos"]
[Result "1-0"]
[ECO "B06"]
[WhiteElo "2526"]
[BlackElo "2455"]
[Annotator "ChessBase"]
[PlyCount "91"]
[EventDate "2022.09.17"]
[EventType "team-tourn"]
[EventCountry "ESP"]
[SourceTitle "playchess.com"]
[Source "ChessBase"]
[SourceQuality "1"]
[TimeControl "5400+30"]

1. e4 {[%emt 0:00:03]} g6 {[%emt 0:00:27]} 2. d4 {[%emt 0:00:53]} Bg7 {[%emt 0:00:09]} 3. Nc3 {[%emt 0:00:27]} d6 {[%emt 0:00:35]} 4. Be3 {[%emt 0:02:07]} Nf6 {[%emt 0:00:22]} 5. Nf3 {[%emt 0:03:04]} a6 {[%emt 0:16:26]} 6. Qd2 {[%emt 0:15:34]} b5 {[%emt 0:13:30]} 7. Bh6 {[%emt 0:02:49]} O-O {[%emt 0:10:47]} 8. Bd3 {[%emt 0:01:03]} Bb7 {[%emt 0:04:20]} 9. Bxg7 {[%emt 0:09:13]} Kxg7 {[%emt 0:00:06]} 10. O-O-O {[%emt 0:04:36]} b4 {[%emt 0:07:58]} 11. e5 {[%emt 0:00:22]} bxc3 {[%emt 0:03:29]} 12. exf6+ {[%emt 0:00:08]} exf6 {[%emt 0:00:04]} 13. Qxc3 {[%emt 0:00:04]} Nd7 {[%emt 0:00:28]} 14. h4 {[%emt 0:04:31]} h5 {[%emt 0:00:56]} 15. Nd2 {[%emt 0:02:59]} Nb6 {[%emt 0:04:49]} 16. Be4 {[%emt 0:06:51]} Bxe4 {[%emt 0:02:51]} 17. Nxe4 {[%emt 0:00:02]} Rb8 {[%emt 0:00:08]} 18. b3 {[%emt 0:24:37]} Re8 {[%emt 0:15:53]} 19. Rhe1 {[%emt 0:02:25]} Nd5 {[%emt 0:04:52]} 20. Qf3 {[%emt 0:05:10]} f5 {[%emt 0:03:32]} 21. Ng5 {[%emt 0:00:20]} c6 {[%emt 0:01:13]} 22. Rxe8 {[%emt 0:04:21]} Qxe8 {[%emt 0:00:01]} 23. c4 {[%emt 0:01:36]} Nf6 {[%emt 0:00:17]} 24. Qc3 {[%emt 0:01:08]} Qd8 {[%emt 0:02:53]} 25. d5 {[%emt 0:01:37]} c5 {[%emt 0:02:15]} 26. Re1 {[%emt 0:00:25]} Rb7 {[%emt 0:00:30]} 27. Re6 {[%emt 0:01:48]} Rd7 {[%emt 0:01:42]} 28. Kc2 {[%emt 0:00:25]} Rb7 {[%emt 0:00:21]} 29. Kd3 {[%emt 0:04:06]} Rd7 {[%emt 0:00:14]} 30. f3 {[%emt 0:00:26]} Rb7 {[%emt 0:00:06]} 31. Ke3 {[%emt 0:00:25]} Rd7 {[%emt 0:00:37]} 32. Kf4 {[%emt 0:00:10]} a5 {[%emt 0:00:43]} 33. g4 {[%emt 0:02:25]} fxg4 {[%emt 0:00:06]} 34. fxg4 {[%emt 0:00:03]} hxg4 {[%emt 0:00:28]} 35. h5 {[%emt 0:00:10]} g3 {[%emt 0:00:29]} 36. h6+ {[%emt 0:01:05]} Kxh6 {[%emt 0:00:20]} 37. Rxf6 {[%emt 0:00:02]} g2 {[%emt 0:01:57]} 38. Nf3 {[%emt 0:01:10]} Re7 {[%emt 0:02:00]} 39. Kg3 {[%emt 0:00:18]} Re2 {[%emt 0:00:21]} 40. Kh2 {[%emt 0:00:47]} Qe7 {[%emt 0:01:26]} 41. Rf4 {[%emt 0:00:13]} g5 {[%emt 0:00:33]} 42. Qh8+ {[%emt 0:00:52]} Kg6 {[%emt 0:00:01]} 43. Qg8+ {[%emt 0:00:23]} Kh6 {[%emt 0:00:02]} 44. Qh8+ {[%emt 0:00:09]} Kg6 {[%emt 0:00:03]} 45. Nh4+ {[%emt 0:00:15]} gxh4 {[%emt 0:00:18]} 46. Rg4+ {[%emt 0:00:01]} 1-0

[Event "ESP-chT Honor Division 2022"]
[Site "Linares"]
[Date "2022.09.18"]
[Round "2.23"]
[White "Trigo Urquijo, Sergio"]
[Black "Korneev, Oleg"]
[Result "1/2-1/2"]
[ECO "A06"]
[WhiteElo "2402"]
[BlackElo "2460"]
[Annotator "ChessBase"]
[PlyCount "60"]
[EventDate "2022.09.17"]
[EventType "team-tourn"]
[EventCountry "ESP"]
[SourceTitle "playchess.com"]
[Source "ChessBase"]
[SourceQuality "1"]
[TimeControl "5400+30"]

1. Nf3 {[%emt 0:00:06]} d5 {[%emt 0:00:04]} 2. g3 {[%emt 0:00:34]} Bg4 {[%emt 0:01:07]} 3. Bg2 {[%emt 0:00:29]} e6 {[%emt 0:00:03]} 4. O-O {[%emt 0:00:40]} Nf6 {[%emt 0:01:01]} 5. h3 {[%emt 0:01:54]} Bh5 {[%emt 0:01:36]} 6. c4 {[%emt 0:00:37]} c6 {[%emt 0:00:15]} 7. d4 {[%emt 0:01:56]} Be7 {[%emt 0:00:54]} 8. cxd5 {[%emt 0:06:45]} Bxf3 {[%emt 0:00:22]} 9. Bxf3 {[%emt 0:00:18]} cxd5 {[%emt 0:00:01]} 10. Nc3 {[%emt 0:01:23]} Nc6 {[%emt 0:00:27]} 11. e3 {[%emt 0:04:02]} O-O {[%emt 0:02:15]} 12. Bd2 {[%emt 0:03:30]} a6 {[%emt 0:00:51]} 13. Qe2 {[%emt 0:04:33]} b5 {[%emt 0:05:54]} 14. Rfc1 {[%emt 0:05:42]} Qb6 {[%emt 0:00:37]} 15. Qd3 {[%emt 0:05:45]} Rfc8 {[%emt 0:11:10]} 16. Bg2 {[%emt 0:08:06]} h6 {[%emt 0:05:20]} 17. Ne2 {[%emt 0:02:33]} Rc7 {[%emt 0:21:33]} 18. Rc2 {[%emt 0:07:30]} Rac8 {[%emt 0:00:08]} 19. Rac1 {[%emt 0:01:27]} Nb4 {[%emt 0:10:15]} 20. Rxc7 {[%emt 0:05:42]} Rxc7 {[%emt 0:00:16]} 21. Bxb4 {[%emt 0:04:17]} Bxb4 {[%emt 0:00:09]} 22. Rc2 {[%emt 0:01:22]} Rc4 {[%emt 0:06:26]} 23. b3 {[%emt 0:05:30]} Rc6 {[%emt 0:00:52]} 24. Qd1 {[%emt 0:00:55]} Ba3 {[%emt 0:03:01]} 25. Qd3 {[%emt 0:02:08]} Qc7 {[%emt 0:05:52]} 26. Rxc6 {[%emt 0:00:26]} Qxc6 {[%emt 0:00:02]} 27. Qc3 {[%emt 0:00:24]} Qxc3 {[%emt 0:00:03]} 28. Nxc3 {[%emt 0:00:09]} g5 {[%emt 0:00:17]} 29. Kf1 {[%emt 0:01:42]} Kf8 {[%emt 0:01:50]} 30. Ke2 {[%emt 0:00:22]} Ke7 {[%emt 0:00:06]} 1/2-1/2